[Event "*** Titled Tuesday Blitz"]
[Site "Chess.com"]
[Date "2021.02.16"]
[Round "1"]
[White "Grieve72"]
[Black "Jospem"]
[Result "0-1"]
[WhiteElo "2468"]
[BlackElo "3020"]
[TimeControl "180+1"]
[EndTime "10:06:49 PST"]
[Termination "Jospem won by resignation"]

1. e4 {[%clk 0:03:00.2]} 1... c5 {[%clk 0:02:58.4]} 2. Nf3 {[%clk 0:03:00.2]}
2... d6 {[%clk 0:02:59]} 3. d4 {[%clk 0:03:00.2]} 3... cxd4 {[%clk 0:02:59.9]}
4. Nxd4 {[%clk 0:03:01]} 4... a6 {[%clk 0:03:00.8]} 5. c4 {[%clk 0:02:55.8]}
5... e6 {[%clk 0:03:01]} 6. Nc3 {[%clk 0:02:55.5]} 6... Nf6 {[%clk 0:03:01.5]}
7. Be3 {[%clk 0:02:52.8]} 7... Be7 {[%clk 0:03:01.3]} 8. Be2 {[%clk 0:02:52.8]}
8... O-O {[%clk 0:02:58.9]} 9. O-O {[%clk 0:02:53.2]} 9... b6 {[%clk 0:02:58.6]}
10. Qd2 {[%clk 0:02:52.9]} 10... Bb7 {[%clk 0:02:58.6]} 11. f3 {[%clk
0:02:53.4]} 11... Nbd7 {[%clk 0:02:58.6]} 12. a3 {[%clk 0:02:53]} 12... Rc8
{[%clk 0:02:57.7]} 13. Rfc1 {[%clk 0:02:53.3]} 13... Qc7 {[%clk 0:02:57.1]} 14.
Kh1 {[%clk 0:02:50.6]} 14... Qb8 {[%clk 0:02:57.1]} 15. b4 {[%clk 0:02:50.1]}
15... Bd8 {[%clk 0:02:55.2]} 16. Bg1 {[%clk 0:02:48]} 16... Bc7 {[%clk
0:02:54.3]} 17. Na4 {[%clk 0:02:46.6]} 17... d5 {[%clk 0:02:39.9]} 18. exd5
{[%clk 0:02:41.5]} 18... exd5 {[%clk 0:02:38.9]} 19. c5 {[%clk 0:02:42]} 19...
b5 {[%clk 0:02:21.7]} 20. Nb2 {[%clk 0:02:17.3]} 20... Ne5 {[%clk 0:01:49.7]}
21. Nf5 {[%clk 0:02:01.6]} 21... Ng6 {[%clk 0:01:43]} 22. Nd3 {[%clk 0:01:54.2]}
22... Rce8 {[%clk 0:01:38]} 23. Re1 {[%clk 0:01:42.8]} 23... Bc8 {[%clk
0:01:35.6]} 24. Nd4 {[%clk 0:01:35.7]} 24... Nh5 {[%clk 0:01:18.9]} 25. Qg5
{[%clk 0:01:01]} 25... Nf6 {[%clk 0:01:05.3]} 26. Bf1 {[%clk 0:00:54.8]} 26...
Be6 {[%clk 0:01:00.4]} 27. g3 {[%clk 0:00:45]} 27... Qc8 {[%clk 0:00:59.7]} 28.
c6 {[%clk 0:00:43.3]} 28... h6 {[%clk 0:00:59.6]} 29. Qd2 {[%clk 0:00:41.1]}
29... h5 {[%clk 0:01:00.2]} 30. Qg5 {[%clk 0:00:36.1]} 30... h4 {[%clk
0:00:55.9]} 31. Bf2 {[%clk 0:00:28.4]} 31... Bh3 {[%clk 0:00:50.8]} 32. Nc5
{[%clk 0:00:14.3]} 32... Bxf1 {[%clk 0:00:47.8]} 33. Rxf1 {[%clk 0:00:15.2]}
33... Qh3 {[%clk 0:00:48.3]} 34. Nf5 {[%clk 0:00:15.5]} 34... hxg3 {[%clk
0:00:39.3]} 35. Bxg3 {[%clk 0:00:14.9]} 35... Re2 {[%clk 0:00:38.9]} 36. Rg1
{[%clk 0:00:09]} 36... Rxh2+ {[%clk 0:00:36.9]} 0-1

[Event "*** Titled Tuesday Blitz"]
[Site "Chess.com"]
[Date "2021.02.16"]
[Round "1"]
[White "milenapn"]
[Black "hypert"]
[Result "0-1"]
[WhiteElo "2091"]
[BlackElo "2495"]
[TimeControl "180+1"]
[EndTime "10:06:54 PST"]
[Termination "hypert won by resignation"]

1. e4 {[%clk 0:03:00.9]} 1... c5 {[%clk 0:02:59.4]} 2. Nf3 {[%clk 0:03:00.7]}
2... e6 {[%clk 0:03:00]} 3. d4 {[%clk 0:03:00.9]} 3... cxd4 {[%clk 0:03:00.9]}
4. Nxd4 {[%clk 0:03:01.8]} 4... Nc6 {[%clk 0:03:01.1]} 5. Nc3 {[%clk 0:02:41.9]}
5... Qc7 {[%clk 0:03:01.3]} 6. Be2 {[%clk 0:02:14.5]} 6... a6 {[%clk 0:03:00.4]}
7. Be3 {[%clk 0:02:12.2]} 7... Nf6 {[%clk 0:02:59.9]} 8. O-O {[%clk 0:02:11.8]}
8... Be7 {[%clk 0:02:59.5]} 9. f4 {[%clk 0:02:09.2]} 9... d6 {[%clk 0:02:59.9]}
10. Bf3 {[%clk 0:02:05.5]} 10... O-O {[%clk 0:02:57.7]} 11. Kh1 {[%clk
0:02:04.5]} 11... Re8 {[%clk 0:02:57]} 12. g4 {[%clk 0:02:02.7]} 12... Nxd4
{[%clk 0:02:45.4]} 13. Bxd4 {[%clk 0:02:00.2]} 13... e5 {[%clk 0:02:46]} 14. Be3
{[%clk 0:01:54.6]} 14... exf4 {[%clk 0:02:41.6]} 15. Bxf4 {[%clk 0:01:55.5]}
15... Be6 {[%clk 0:02:41.3]} 16. g5 {[%clk 0:01:49.6]} 16... Nd7 {[%clk
0:02:40.9]} 17. Bg4 {[%clk 0:01:40.9]} 17... Ne5 {[%clk 0:02:28.4]} 18. Bxe6
{[%clk 0:01:34.1]} 18... fxe6 {[%clk 0:02:29.3]} 19. Bxe5 {[%clk 0:01:29.2]}
19... dxe5 {[%clk 0:02:30.2]} 20. Qg4 {[%clk 0:01:29.6]} 20... Qc6 {[%clk
0:02:28.8]} 21. Rf2 {[%clk 0:01:10.7]} 21... Bc5 {[%clk 0:02:21.2]} 22. Rd2
{[%clk 0:01:10.2]} 22... Rad8 {[%clk 0:02:19.7]} 23. Rad1 {[%clk 0:01:10.2]}
23... Rxd2 {[%clk 0:02:16.7]} 24. Rxd2 {[%clk 0:01:11.1]} 24... Rf8 {[%clk
0:02:09.1]} 25. Ne2 {[%clk 0:01:00.9]} 25... Be3 {[%clk 0:01:52.3]} 26. Rd3
{[%clk 0:00:59.6]} 26... Bb6 {[%clk 0:01:44.5]} 27. Rc3 {[%clk 0:00:43.2]} 27...
Qd7 {[%clk 0:01:34.6]} 28. Rd3 {[%clk 0:00:42.7]} 28... Rf1+ {[%clk 0:01:32]}
29. Kg2 {[%clk 0:00:41.3]} 29... Rf2+ {[%clk 0:01:20.4]} 30. Kg3 {[%clk
0:00:39.4]} 30... Qf7 {[%clk 0:01:18.1]} 31. Rf3 {[%clk 0:00:36.1]} 31... Rxf3+
{[%clk 0:01:14.9]} 32. Qxf3 {[%clk 0:00:37]} 32... Qc7 {[%clk 0:01:14.4]} 33.
Qd3 {[%clk 0:00:31.2]} 33... g6 {[%clk 0:01:12.8]} 34. Kg4 {[%clk 0:00:27.4]}
34... Kg7 {[%clk 0:01:12.6]} 35. h4 {[%clk 0:00:26.1]} 35... Qf7 {[%clk
0:01:12.1]} 36. Qf3 {[%clk 0:00:23.6]} 36... Qe7 {[%clk 0:01:12.4]} 37. Nc3
{[%clk 0:00:23.2]} 37... Bd4 {[%clk 0:01:11.6]} 38. h5 {[%clk 0:00:19.5]} 38...
gxh5+ {[%clk 0:01:08.5]} 39. Kxh5 {[%clk 0:00:20.4]} 39... Qe8+ {[%clk 0:01:07]}
40. Kg4 {[%clk 0:00:19.7]} 40... Qg6 {[%clk 0:01:06.8]} 41. Nd1 {[%clk
0:00:17.7]} 41... Bc5 {[%clk 0:01:06.4]} 42. Ne3 {[%clk 0:00:16.7]} 42... Be7
{[%clk 0:01:05.8]} 43. Nf5+ {[%clk 0:00:12.7]} 43... exf5+ {[%clk 0:01:03.3]}
44. Qxf5 {[%clk 0:00:13.6]} 44... Qxf5+ {[%clk 0:01:02.2]} 45. exf5 {[%clk
0:00:14.5]} 45... Kf7 {[%clk 0:01:02.6]} 46. Kh5 {[%clk 0:00:14]} 46... e4
{[%clk 0:01:02.9]} 47. Kg4 {[%clk 0:00:13.9]} 47... Bd6 {[%clk 0:01:02.8]} 0-1

[Event "*** Titled Tuesday Blitz"]
[Site "Chess.com"]
[Date "2021.02.16"]
[Round "1"]
[White "Sergey85Rodchenkov"]
[Black "bylavochka"]
[Result "1-0"]
[WhiteElo "2490"]
[BlackElo "2078"]
[TimeControl "180+1"]
[EndTime "10:06:56 PST"]
[Termination "Sergey85Rodchenkov won by resignation"]

1. e4 {[%clk 0:03:00.5]} 1... e5 {[%clk 0:02:59.8]} 2. Nf3 {[%clk 0:02:59.9]}
2... Nc6 {[%clk 0:03:00]} 3. Bc4 {[%clk 0:02:59.1]} 3... Nf6 {[%clk 0:02:57.5]}
4. d3 {[%clk 0:02:59.1]} 4... h6 {[%clk 0:02:57]} 5. O-O {[%clk 0:02:59.2]} 5...
d6 {[%clk 0:02:56.3]} 6. c3 {[%clk 0:02:58.9]} 6... Be7 {[%clk 0:02:56.3]} 7.
Re1 {[%clk 0:02:58.6]} 7... O-O {[%clk 0:02:56]} 8. Nbd2 {[%clk 0:02:58.5]} 8...
Re8 {[%clk 0:02:56.1]} 9. b4 {[%clk 0:02:56.2]} 9... Bf8 {[%clk 0:02:52.8]} 10.
a4 {[%clk 0:02:55.5]} 10... a6 {[%clk 0:02:45.6]} 11. Bb2 {[%clk 0:02:49.8]}
11... Be6 {[%clk 0:02:35.7]} 12. Bxe6 {[%clk 0:02:49]} 12... fxe6 {[%clk
0:02:15.4]} 13. b5 {[%clk 0:02:46.1]} 13... Na5 {[%clk 0:01:54.2]} 14. c4 {[%clk
0:02:40.5]} 14... b6 {[%clk 0:01:53.8]} 15. Bc3 {[%clk 0:02:14.4]} 15... Nb7
{[%clk 0:01:52.6]} 16. Nb3 {[%clk 0:02:13.9]} 16... a5 {[%clk 0:01:49.2]} 17. d4
{[%clk 0:02:11.8]} 17... exd4 {[%clk 0:01:41.1]} 18. Nbxd4 {[%clk 0:02:11.3]}
18... e5 {[%clk 0:01:28]} 19. Nc6 {[%clk 0:02:10.3]} 19... Qc8 {[%clk
0:01:26.4]} 20. Nd2 {[%clk 0:02:06]} 20... Nc5 {[%clk 0:01:23.3]} 21. Qf3 {[%clk
0:02:01.9]} 21... Qg4 {[%clk 0:01:14.6]} 22. Qxg4 {[%clk 0:02:01.3]} 22... Nxg4
{[%clk 0:01:15.5]} 23. f3 {[%clk 0:02:01]} 23... Nf6 {[%clk 0:01:13.3]} 24. Nf1
{[%clk 0:01:57]} 24... g6 {[%clk 0:01:08.4]} 25. Ne3 {[%clk 0:01:56.5]} 25...
Kg7 {[%clk 0:01:08]} 26. Red1 {[%clk 0:01:54.8]} 26... Rac8 {[%clk 0:00:52.1]}
27. Nd5 {[%clk 0:01:54.4]} 27... Nxd5 {[%clk 0:00:51.6]} 28. cxd5 {[%clk
0:01:55]} 28... Be7 {[%clk 0:00:34.4]} 29. g3 {[%clk 0:01:51.1]} 29... Bf6
{[%clk 0:00:34.2]} 30. Kg2 {[%clk 0:01:50.1]} 30... Kf7 {[%clk 0:00:33.3]} 31.
h4 {[%clk 0:01:50]} 31... g5 {[%clk 0:00:29.8]} 32. h5 {[%clk 0:01:31.1]} 32...
Rg8 {[%clk 0:00:24.7]} 33. g4 {[%clk 0:01:31]} 33... Rge8 {[%clk 0:00:20.7]} 34.
Kf2 {[%clk 0:01:26.3]} 34... Rf8 {[%clk 0:00:17.3]} 35. Ke2 {[%clk 0:01:26]}
35... Ke8 {[%clk 0:00:16.3]} 36. Rf1 {[%clk 0:01:24.3]} 36... Kd7 {[%clk
0:00:15.6]} 37. Bb2 {[%clk 0:01:20.6]} 37... Be7 {[%clk 0:00:11.5]} 38. Bc1
{[%clk 0:01:17.4]} 38... Rf7 {[%clk 0:00:09.7]} 39. Be3 {[%clk 0:01:17.4]} 39...
Rcf8 {[%clk 0:00:10.2]} 40. Bxc5 {[%clk 0:01:17.2]} 40... bxc5 {[%clk
0:00:09.5]} 41. Nxa5 {[%clk 0:01:15]} 41... Ra8 {[%clk 0:00:06.9]} 42. Nc6
{[%clk 0:01:12]} 42... Rff8 {[%clk 0:00:06.1]} 43. a5 {[%clk 0:01:10.9]} 43...
Bf6 {[%clk 0:00:04.8]} 44. Kd3 {[%clk 0:01:10.1]} 44... Bg7 {[%clk 0:00:03.1]}
45. Kc4 {[%clk 0:01:09.9]} 45... Rfc8 {[%clk 0:00:03.4]} 46. Ra3 {[%clk
0:01:08.9]} 46... Bf6 {[%clk 0:00:03.6]} 47. Rfa1 {[%clk 0:01:07.4]} 47... Re8
{[%clk 0:00:03.2]} 48. b6 {[%clk 0:01:06.4]} 48... Rec8 {[%clk 0:00:03.9]} 49.
b7 {[%clk 0:01:06.3]} 1-0

[Event "*** Titled Tuesday Blitz"]
[Site "Chess.com"]
[Date "2021.02.16"]
[Round "1"]
[White "kleopl"]
[Black "FMOlexandrProhorov"]
[Result "0-1"]
[WhiteElo "2477"]
[BlackElo "2104"]
[TimeControl "180+1"]
[EndTime "10:06:57 PST"]
[Termination "FMOlexandrProhorov won by checkmate"]

1. e4 {[%clk 0:02:59.6]} 1... e6 {[%clk 0:02:53.7]} 2. d4 {[%clk 0:02:58.3]}
2... d5 {[%clk 0:02:53.8]} 3. Nd2 {[%clk 0:02:58.4]} 3... Nc6 {[%clk 0:02:53.1]}
4. c3 {[%clk 0:02:57.4]} 4... e5 {[%clk 0:02:51.7]} 5. exd5 {[%clk 0:02:49.1]}
5... Qxd5 {[%clk 0:02:51.4]} 6. dxe5 {[%clk 0:02:45.5]} 6... Qxe5+ {[%clk
0:02:48.7]} 7. Be2 {[%clk 0:02:43.6]} 7... Bc5 {[%clk 0:02:35.5]} 8. Ngf3 {[%clk
0:02:39.4]} 8... Qe7 {[%clk 0:02:27.9]} 9. O-O {[%clk 0:02:38.9]} 9... Nf6
{[%clk 0:02:25.9]} 10. Bb5 {[%clk 0:02:34.3]} 10... O-O {[%clk 0:02:24.7]} 11.
Bxc6 {[%clk 0:02:32.3]} 11... bxc6 {[%clk 0:02:24.5]} 12. Nb3 {[%clk 0:02:30]}
12... Bd6 {[%clk 0:02:22.4]} 13. Bg5 {[%clk 0:02:26.4]} 13... Bg4 {[%clk
0:02:14.3]} 14. h3 {[%clk 0:02:25.8]} 14... Bh5 {[%clk 0:02:12.9]} 15. Nbd4
{[%clk 0:02:24.7]} 15... Qd7 {[%clk 0:02:06.5]} 16. Bxf6 {[%clk 0:02:21.4]}
16... gxf6 {[%clk 0:01:59.8]} 17. Re1 {[%clk 0:01:40.9]} 17... Rab8 {[%clk
0:01:55.6]} 18. b3 {[%clk 0:01:34]} 18... c5 {[%clk 0:01:43.3]} 19. Nc2 {[%clk
0:01:32.8]} 19... Qc6 {[%clk 0:01:43.5]} 20. Re3 {[%clk 0:01:26]} 20... Bf4
{[%clk 0:01:36.7]} 21. Rd3 {[%clk 0:01:25.9]} 21... Bg6 {[%clk 0:01:36.8]} 22.
Rd2 {[%clk 0:01:01.4]} 22... Bxd2 {[%clk 0:01:28.1]} 23. Qxd2 {[%clk 0:01:02.3]}
23... Rbd8 {[%clk 0:01:28.6]} 24. Qc1 {[%clk 0:01:00.4]} 24... Kg7 {[%clk
0:01:21]} 25. Ne3 {[%clk 0:01:00.1]} 25... Rfe8 {[%clk 0:01:18.2]} 26. Nh4
{[%clk 0:00:59.1]} 26... Qe4 {[%clk 0:01:14.7]} 27. Nf3 {[%clk 0:00:56.8]} 27...
Qd3 {[%clk 0:01:11.9]} 28. c4 {[%clk 0:00:55.3]} 28... a5 {[%clk 0:00:55.6]} 29.
Nd5 {[%clk 0:00:54.2]} 29... c6 {[%clk 0:00:52.4]} 30. Nf4 {[%clk 0:00:53.1]}
30... Qe4 {[%clk 0:00:50.6]} 31. Nh4 {[%clk 0:00:44]} 31... Qd4 {[%clk 0:00:43]}
32. g3 {[%clk 0:00:42]} 32... Qd2 {[%clk 0:00:39.5]} 33. Qa3 {[%clk 0:00:37.4]}
33... Re1+ {[%clk 0:00:36.5]} 34. Rxe1 {[%clk 0:00:35.9]} 34... Qxe1+ {[%clk
0:00:37.4]} 35. Kh2 {[%clk 0:00:28.5]} 35... Qxf2+ {[%clk 0:00:31.8]} 36. Nfg2
{[%clk 0:00:26.4]} 36... Rd1 {[%clk 0:00:30.9]} 37. g4 {[%clk 0:00:19.1]} 37...
Qg1+ {[%clk 0:00:30.1]} 38. Kg3 {[%clk 0:00:19]} 38... Rd3+ {[%clk 0:00:29]} 39.
Kf4 {[%clk 0:00:18.4]} 39... Qf2+ {[%clk 0:00:28.9]} 40. Nf3 {[%clk 0:00:16.7]}
40... Qxf3# {[%clk 0:00:28.4]} 0-1

[Event "*** Titled Tuesday Blitz"]
[Site "Chess.com"]
[Date "2021.02.16"]
[Round "1"]
[White "JoakimVonAnd"]
[Black "MarkoPe"]
[Result "1-0"]
[WhiteElo "2542"]
[BlackElo "2218"]
[TimeControl "180+1"]
[EndTime "10:06:58 PST"]
[Termination "JoakimVonAnd won by resignation"]

1. d4 {[%clk 0:02:59.6]} 1... d5 {[%clk 0:02:52.4]} 2. Nf3 {[%clk 0:02:53.8]}
2... e6 {[%clk 0:02:51.1]} 3. e3 {[%clk 0:02:48.2]} 3... Nf6 {[%clk 0:02:48.9]}
4. Bd3 {[%clk 0:02:48.4]} 4... Bd6 {[%clk 0:02:44.7]} 5. O-O {[%clk 0:02:47.9]}
5... O-O {[%clk 0:02:39.8]} 6. Qe2 {[%clk 0:02:46.2]} 6... c5 {[%clk 0:02:38.3]}
7. dxc5 {[%clk 0:02:37]} 7... Bxc5 {[%clk 0:02:37.8]} 8. Nbd2 {[%clk 0:02:37.2]}
8... Nc6 {[%clk 0:02:36.6]} 9. a3 {[%clk 0:02:34.6]} 9... a5 {[%clk 0:02:34]}
10. b3 {[%clk 0:02:33.8]} 10... e5 {[%clk 0:02:28.5]} 11. e4 {[%clk 0:02:30.5]}
11... Nd4 {[%clk 0:02:28]} 12. Nxd4 {[%clk 0:02:19.4]} 12... Bxd4 {[%clk
0:02:28.9]} 13. Rb1 {[%clk 0:02:17.7]} 13... Bg4 {[%clk 0:02:28.8]} 14. Qe1
{[%clk 0:02:16.2]} 14... Qb6 {[%clk 0:01:45.4]} 15. exd5 {[%clk 0:02:06.2]}
15... Nxd5 {[%clk 0:01:29.6]} 16. Nc4 {[%clk 0:02:04.7]} 16... Qc5 {[%clk
0:01:18.9]} 17. b4 {[%clk 0:01:52.4]} 17... axb4 {[%clk 0:01:16.9]} 18. axb4
{[%clk 0:01:53.3]} 18... Qc6 {[%clk 0:01:01.8]} 19. Nxe5 {[%clk 0:01:49]} 19...
Bxe5 {[%clk 0:00:52.6]} 20. Qxe5 {[%clk 0:01:49.9]} 20... Rfe8 {[%clk
0:00:51.6]} 21. Qg3 {[%clk 0:01:48.9]} 21... Be2 {[%clk 0:00:44.9]} 22. Bxe2
{[%clk 0:01:40.3]} 22... Rxe2 {[%clk 0:00:45.8]} 23. Be3 {[%clk 0:01:28.5]}
23... Nxe3 {[%clk 0:00:36]} 24. fxe3 {[%clk 0:01:29.4]} 24... Qxc2 {[%clk
0:00:36.2]} 25. Rbc1 {[%clk 0:01:23.9]} 25... Qe4 {[%clk 0:00:35.4]} 26. Qf3
{[%clk 0:01:14.9]} 26... Qxe3+ {[%clk 0:00:33.8]} 27. Qxe3 {[%clk 0:01:11.2]}
27... Rxe3 {[%clk 0:00:34.7]} 28. Rc7 {[%clk 0:01:11.8]} 28... Re2 {[%clk
0:00:29.7]} 29. Rfxf7 {[%clk 0:01:06]} 29... Ra1+ {[%clk 0:00:19]} 30. Rf1
{[%clk 0:01:05]} 30... Rxf1+ {[%clk 0:00:15]} 31. Kxf1 {[%clk 0:01:04.8]} 31...
Rb2 {[%clk 0:00:15.9]} 32. Rxb7 {[%clk 0:01:05.1]} 32... h6 {[%clk 0:00:12]} 33.
b5 {[%clk 0:01:04.9]} 33... Kh7 {[%clk 0:00:09.9]} 34. b6 {[%clk 0:01:05.1]}
34... Kg6 {[%clk 0:00:10.4]} 35. Rb8 {[%clk 0:01:05.5]} 35... Kf7 {[%clk
0:00:09.5]} 36. b7 {[%clk 0:01:01.8]} 36... h5 {[%clk 0:00:09.4]} 37. Ke1 {[%clk
0:00:59.6]} 37... g5 {[%clk 0:00:06.4]} 38. Rh8 {[%clk 0:00:54.5]} 38... Rxb7
{[%clk 0:00:05.3]} 39. Rh7+ {[%clk 0:00:54.6]} 1-0

[Event "*** Titled Tuesday Blitz"]
[Site "Chess.com"]
[Date "2021.02.16"]
[Round "1"]
[White "ARTHURMOTIVATOR"]
[Black "Aygehovit1992"]
[Result "1-0"]
[WhiteElo "2329"]
[BlackElo "2597"]
[TimeControl "180+1"]
[EndTime "10:07:00 PST"]
[Termination "ARTHURMOTIVATOR won by resignation"]

1. e4 {[%clk 0:02:59.4]} 1... c5 {[%clk 0:02:54.7]} 2. Nf3 {[%clk 0:02:57.9]}
2... d6 {[%clk 0:02:50.6]} 3. d4 {[%clk 0:02:53.2]} 3... cxd4 {[%clk 0:02:51.5]}
4. Nxd4 {[%clk 0:02:52]} 4... Nf6 {[%clk 0:02:51.2]} 5. Nc3 {[%clk 0:02:51.8]}
5... Nc6 {[%clk 0:02:51.2]} 6. Bg5 {[%clk 0:02:44.5]} 6... Bd7 {[%clk
0:02:49.6]} 7. Bxf6 {[%clk 0:02:36.3]} 7... gxf6 {[%clk 0:02:49.3]} 8. Be2
{[%clk 0:02:29.8]} 8... Nxd4 {[%clk 0:02:48.8]} 9. Qxd4 {[%clk 0:02:28.2]} 9...
Rc8 {[%clk 0:02:47.8]} 10. O-O {[%clk 0:02:20.8]} 10... Qa5 {[%clk 0:02:45.8]}
11. a4 {[%clk 0:01:54.7]} 11... Qc5 {[%clk 0:02:30.4]} 12. Qd2 {[%clk 0:01:52]}
12... Rg8 {[%clk 0:02:29.7]} 13. Bb5 {[%clk 0:01:44]} 13... h5 {[%clk
0:01:43.4]} 14. Bxd7+ {[%clk 0:01:31.8]} 14... Kxd7 {[%clk 0:01:41.1]} 15. Ra3
{[%clk 0:01:29.7]} 15... h4 {[%clk 0:01:36.6]} 16. Rb3 {[%clk 0:01:17.8]} 16...
b6 {[%clk 0:01:35.9]} 17. a5 {[%clk 0:01:13.8]} 17... Qh5 {[%clk 0:01:21.6]} 18.
Nd5 {[%clk 0:01:04.5]} 18... h3 {[%clk 0:00:57.2]} 19. g3 {[%clk 0:00:58.3]}
19... b5 {[%clk 0:00:57.2]} 20. a6 {[%clk 0:00:52.9]} 20... Rc5 {[%clk
0:00:56.5]} 21. f4 {[%clk 0:00:44.6]} 21... Bh6 {[%clk 0:00:53.3]} 22. Rd1
{[%clk 0:00:39.6]} 22... Rgc8 {[%clk 0:00:42.6]} 23. c4 {[%clk 0:00:22.9]} 23...
Rxc4 {[%clk 0:00:26.9]} 24. Rxb5 {[%clk 0:00:13.7]} 24... Rc2 {[%clk 0:00:26.2]}
25. Nxf6+ {[%clk 0:00:12.8]} 25... Kd8 {[%clk 0:00:18.8]} 26. Rxh5 {[%clk
0:00:10.8]} 26... Rxd2 {[%clk 0:00:18.8]} 27. Rxd2 {[%clk 0:00:11.1]} 27... Bg7
{[%clk 0:00:18.3]} 28. Nd5 {[%clk 0:00:09.7]} 28... Rc1+ {[%clk 0:00:18.2]} 29.
Kf2 {[%clk 0:00:09]} 29... e6 {[%clk 0:00:18.5]} 30. Nc3 {[%clk 0:00:06.4]}
30... Bxc3 {[%clk 0:00:17.4]} 31. Rh7 {[%clk 0:00:07.3]} 1-0

[Event "*** Titled Tuesday Blitz"]
[Site "Chess.com"]
[Date "2021.02.16"]
[Round "1"]
[White "Firouzja2003"]
[Black "BairaKovanova"]
[Result "1-0"]
[WhiteElo "3078"]
[BlackElo "2469"]
[TimeControl "180+1"]
[EndTime "10:07:02 PST"]
[Termination "Firouzja2003 won on time"]

1. d4 {[%clk 0:03:00.9]} 1... Nf6 {[%clk 0:02:58.3]} 2. Bg5 {[%clk 0:02:58.3]}
2... d5 {[%clk 0:02:57.2]} 3. e3 {[%clk 0:02:57.9]} 3... Nbd7 {[%clk 0:02:53.3]}
4. c4 {[%clk 0:02:57.7]} 4... e6 {[%clk 0:02:51.5]} 5. Nc3 {[%clk 0:02:57.4]}
5... Be7 {[%clk 0:02:50.9]} 6. Nf3 {[%clk 0:02:52.4]} 6... h6 {[%clk 0:02:47.5]}
7. Bh4 {[%clk 0:02:52.6]} 7... c6 {[%clk 0:02:37.4]} 8. Rc1 {[%clk 0:02:47.3]}
8... O-O {[%clk 0:02:33.9]} 9. Bd3 {[%clk 0:02:47.1]} 9... a6 {[%clk 0:02:09.4]}
10. O-O {[%clk 0:02:34.5]} 10... dxc4 {[%clk 0:02:02.1]} 11. Bxc4 {[%clk
0:02:35.4]} 11... b5 {[%clk 0:02:02.6]} 12. Bd3 {[%clk 0:02:29.2]} 12... c5
{[%clk 0:02:02.2]} 13. Bxf6 {[%clk 0:02:20.3]} 13... Bxf6 {[%clk 0:01:55.4]} 14.
Ne4 {[%clk 0:02:16.3]} 14... c4 {[%clk 0:01:39.8]} 15. Bb1 {[%clk 0:02:14.8]}
15... Bb7 {[%clk 0:01:39.6]} 16. Qc2 {[%clk 0:02:14.8]} 16... g6 {[%clk
0:01:30.9]} 17. b3 {[%clk 0:02:14.8]} 17... Nb6 {[%clk 0:01:12.6]} 18. Qe2
{[%clk 0:02:12.8]} 18... Bg7 {[%clk 0:01:08.5]} 19. Nc5 {[%clk 0:02:12.8]} 19...
Bd5 {[%clk 0:01:01.8]} 20. Rfd1 {[%clk 0:02:05.5]} 20... cxb3 {[%clk 0:00:41.2]}
21. axb3 {[%clk 0:02:04.6]} 21... Bxf3 {[%clk 0:00:36.8]} 22. Qxf3 {[%clk
0:02:04.3]} 22... Nd5 {[%clk 0:00:34.4]} 23. Be4 {[%clk 0:02:03.9]} 23... Qd6
{[%clk 0:00:23.8]} 24. Ra1 {[%clk 0:02:01.7]} 24... Rfc8 {[%clk 0:00:18.1]} 25.
Bxd5 {[%clk 0:02:01]} 25... exd5 {[%clk 0:00:17.3]} 26. b4 {[%clk 0:02:01.3]}
26... Bf8 {[%clk 0:00:16.7]} 27. Ra3 {[%clk 0:02:00.8]} 27... Qb6 {[%clk
0:00:15.1]} 28. Rda1 {[%clk 0:02:00.9]} 28... Bxc5 {[%clk 0:00:14.2]} 29. dxc5
{[%clk 0:02:01.8]} 29... Qc6 {[%clk 0:00:14.4]} 30. Rd1 {[%clk 0:02:01.9]} 30...
Rd8 {[%clk 0:00:14]} 31. Ra5 {[%clk 0:01:58.1]} 31... Rd7 {[%clk 0:00:13.3]} 32.
Rd4 {[%clk 0:01:58.2]} 32... Rad8 {[%clk 0:00:12.5]} 33. h4 {[%clk 0:01:58]}
33... h5 {[%clk 0:00:12.2]} 34. Qd1 {[%clk 0:01:58.4]} 34... Re8 {[%clk
0:00:10.8]} 35. Qa1 {[%clk 0:01:58.5]} 35... Re6 {[%clk 0:00:10.5]} 36. Ra3
{[%clk 0:01:55]} 36... Kh7 {[%clk 0:00:09.8]} 37. Rad3 {[%clk 0:01:55.4]} 37...
Re8 {[%clk 0:00:09.5]} 38. Qa2 {[%clk 0:01:55.4]} 38... Re5 {[%clk 0:00:08.7]}
39. e4 {[%clk 0:01:51.5]} 39... Rxe4 {[%clk 0:00:08]} 40. Rxe4 {[%clk
0:01:43.7]} 40... dxe4 {[%clk 0:00:07.6]} 41. Rd6 {[%clk 0:01:44.6]} 41... Qc7
{[%clk 0:00:06.2]} 42. Qxa6 {[%clk 0:01:31.3]} 42... Re7 {[%clk 0:00:06.4]} 43.
Qxb5 {[%clk 0:01:26.9]} 43... e3 {[%clk 0:00:06.4]} 44. fxe3 {[%clk 0:01:27.8]}
44... Qc8 {[%clk 0:00:06.4]} 45. Qd3 {[%clk 0:01:16.1]} 45... Qg4 {[%clk
0:00:05.9]} 46. Rd4 {[%clk 0:01:16.2]} 46... Qe6 {[%clk 0:00:04.7]} 47. Rf4
{[%clk 0:01:16.2]} 47... Qa2 {[%clk 0:00:03.4]} 48. c6 {[%clk 0:01:12.7]} 48...
Qa1+ {[%clk 0:00:02.9]} 49. Kh2 {[%clk 0:01:13.1]} 49... Qc1 {[%clk 0:00:02.9]}
50. b5 {[%clk 0:01:10.3]} 50... Qc5 {[%clk 0:00:01.9]} 51. Qc4 {[%clk
0:01:05.8]} 1-0

[Event "*** Titled Tuesday Blitz"]
[Site "Chess.com"]
[Date "2021.02.16"]
[Round "1"]
[White "WilliamSchill"]
[Black "crazy_but_lazy"]
[Result "0-1"]
[WhiteElo "2060"]
[BlackElo "2488"]
[TimeControl "180+1"]
[EndTime "10:07:04 PST"]
[Termination "crazy_but_lazy won on time"]

1. e4 {[%clk 0:02:57.9]} 1... c5 {[%clk 0:02:57.1]} 2. Nf3 {[%clk 0:02:56.6]}
2... d6 {[%clk 0:02:54.4]} 3. d4 {[%clk 0:02:55.8]} 3... cxd4 {[%clk 0:02:55.3]}
4. Nxd4 {[%clk 0:02:55.6]} 4... Nf6 {[%clk 0:02:54.6]} 5. Nc3 {[%clk 0:02:55.3]}
5... a6 {[%clk 0:02:54.6]} 6. Bg5 {[%clk 0:02:55]} 6... e6 {[%clk 0:02:50.1]} 7.
f4 {[%clk 0:02:54.3]} 7... Nc6 {[%clk 0:02:46.3]} 8. Nxc6 {[%clk 0:02:23.7]}
8... bxc6 {[%clk 0:02:46.1]} 9. e5 {[%clk 0:02:23.7]} 9... h6 {[%clk 0:02:36.5]}
10. Bh4 {[%clk 0:02:11.4]} 10... g5 {[%clk 0:02:29]} 11. fxg5 {[%clk 0:01:50.1]}
11... Nd5 {[%clk 0:02:28]} 12. Ne4 {[%clk 0:00:59]} 12... dxe5 {[%clk
0:01:28.5]} 13. Nf6+ {[%clk 0:00:58]} 13... Nxf6 {[%clk 0:01:27.8]} 14. Qxd8+
{[%clk 0:00:57.2]} 14... Kxd8 {[%clk 0:01:28.7]} 15. gxf6 {[%clk 0:00:56.6]}
15... Kc7 {[%clk 0:01:16.6]} 16. Be2 {[%clk 0:00:40.5]} 16... Bc5 {[%clk
0:01:11.5]} 17. O-O-O {[%clk 0:00:31.2]} 17... a5 {[%clk 0:00:56.9]} 18. Bh5
{[%clk 0:00:29.4]} 18... Rf8 {[%clk 0:00:48.8]} 19. Rhe1 {[%clk 0:00:28.3]}
19... Bb7 {[%clk 0:00:31]} 20. Bg3 {[%clk 0:00:27.5]} 20... Bd6 {[%clk
0:00:30.8]} 21. Bxe5 {[%clk 0:00:20.7]} 21... Bxe5 {[%clk 0:00:30.1]} 22. Rxe5
{[%clk 0:00:20.4]} 22... a4 {[%clk 0:00:29.4]} 23. Re3 {[%clk 0:00:12.2]} 23...
Ra5 {[%clk 0:00:28.5]} 24. Bf3 {[%clk 0:00:11.1]} 24... Rf5 {[%clk 0:00:25.1]}
25. Red3 {[%clk 0:00:11]} 25... Rxf6 {[%clk 0:00:25.5]} 26. Rd7+ {[%clk
0:00:10.3]} 26... Kb6 {[%clk 0:00:26.1]} 27. Re7 {[%clk 0:00:06.1]} 27... a3
{[%clk 0:00:21.3]} 28. b3 {[%clk 0:00:04.5]} 28... Rf4 {[%clk 0:00:09.2]} 29.
Rdd7 {[%clk 0:00:03.9]} 29... Ba6 {[%clk 0:00:09.8]} 0-1